bitfinex/quotes_BTCUSD_20251012
["timestamp","ask_amount","ask_price","bid_price","bid_amount"]
[1760256682620,1.0943436,111870.0,111860.0,0.10256811]
[1760256682836,1.1268736,111870.0,111860.0,0.06442811]
[1760256682992,1.32550571,111870.0,111860.0,0.06442811]
[1760256683422,1.29297571,111870.0,111860.0,0.08594811]
[1760256683776,1.29297571,111870.0,111860.0,0.08394811]
[1760256683996,1.29297571,111870.0,111860.0,0.09956811]
[1760256684199,1.32550571,111870.0,111860.0,0.06342811]
[1760256684608,1.32550571,111870.0,111860.0,0.04230362]
[1760256684919,1.29297571,111870.0,111860.0,0.06382362]
[1760256685729,1.29297571,111870.0,111860.0,0.08044362]
[1760256687834,0.96400403,111880.0,111860.0,0.11500362]
[1760256687835,0.19481725,111880.0,111860.0,0.11500362]
[1760256688048,0.20375198,111890.0,111870.0,0.24783682]
[1760256688049,0.92436876,111890.0,111870.0,0.24783682]
[1760256688266,0.92436876,111890.0,111880.0,0.0727]
[1760256688477,0.17876296,111880.0,111870.0,0.08493506]
[1760256688692,0.17877893,111870.0,111860.0,0.05622]
[1760256688897,0.17877893,111870.0,111860.0,0.0386]
[1760256688898,1.32550571,111870.0,111860.0,0.0386]
[1760256689324,1.32550571,111870.0,111860.0,0.0396]
[1760256689554,1.32550571,111870.0,111860.0,0.04765]
[1760256689727,1.29297571,111870.0,111860.0,0.0386]
[1760256689934,1.29297571,111870.0,111860.0,0.05912]
[1760256690180,1.29297571,111870.0,111860.0,0.06012]
[1760256690370,1.29297571,111870.0,111860.0,0.07674]
[1760256690563,1.29297571,111870.0,111860.0,0.12626442]
[1760256690979,1.29297571,111870.0,111860.0,0.05747949]
[1760256691201,1.32550571,111870.0,111860.0,0.0396]
[1760256705251,1.32550571,111870.0,111860.0,0.002]
[1760256705714,1.32550571,111870.0,111860.0,0.00470362]
[1760256705920,1.32550571,111870.0,111860.0,0.00370362]
[1760256706082,1.32550571,111870.0,111860.0,0.00470362]
[1760256706496,1.35240513,111870.0,111860.0,0.00470362]
[1760256706968,1.35240513,111870.0,111860.0,0.00370362]
[1760256707170,1.44112447,111870.0,111860.0,0.00370362]
[1760256707382,1.35240513,111870.0,111860.0,0.00370362]
[1760256708670,1.38255703,111870.0,111860.0,0.00370362]
[1760256709077,1.38255703,111870.0,111860.0,1e-08]
[1760256709326,2.11921381,111870.0,111860.0,1e-08]
[1760256709950,0.5489628,111850.0,111840.0,0.0376]
[1760256710086,2.03538636,111850.0,111840.0,0.0376]
[1760256710281,2.03538636,111850.0,111840.0,1e-08]
[1760256710282,2.09218636,111850.0,111840.0,1e-08]
[1760256710736,2.11909425,111850.0,111840.0,1e-08]
[1760256711050,2.11909425,111850.0,111840.0,0.0005001]
[1760256712136,2.20781359,111850.0,111840.0,1e-08]
[1760256712340,2.11909425,111850.0,111840.0,1e-08]
[1760256712763,2.13579865,111850.0,111840.0,1e-08]
[1760256715691,0.66248509,111850.0,111840.0,1e-08]
[1760256715969,0.67650856,111850.0,111840.0,1e-08]
[1760256717893,0.68483651,111850.0,111840.0,1e-08]
[1760256718099,0.77355585,111850.0,111840.0,1e-08]
[1760256719695,0.77355064,111850.0,111840.0,1e-08]
[1760256720820,0.79606096,111850.0,111840.0,1e-08]
[1760256721048,0.6848313,111850.0,111840.0,1e-08]
[1760256721368,0.6848313,111850.0,111790.0,0.10922362]
[1760256721369,0.17889087,111800.0,111790.0,0.10922362]
[1760256721627,0.25027087,111800.0,111790.0,0.10937346]
[1760256721841,0.59027087,111800.0,111790.0,0.11228528]
[1760256722043,0.59027087,111800.0,111790.0,0.04066166]
[1760256722387,1.32692765,111800.0,111790.0,0.04066166]
[1760256722860,1.32692765,111800.0,111790.0,0.04166166]
[1760256724438,1.32692765,111800.0,111790.0,0.04266166]
[1760256724644,1.32692765,111800.0,111790.0,0.04166166]
[1760256724962,1.32692765,111800.0,111790.0,0.04266166]
[1760256729390,1.90563247,111800.0,111790.0,0.04266166]
[1760256729799,2.55500933,111800.0,111790.0,0.04266166]
[1760256730032,2.58516123,111800.0,111790.0,0.04266166]
[1760256730919,2.61208141,111800.0,111790.0,0.04166166]
[1760256731598,1.65616146,111800.0,111790.0,0.04166166]
[1760256731744,1.65616146,111800.0,111790.0,0.04266166]
[1760256731953,1.7448808,111800.0,111790.0,0.04066166]
[1760256732857,1.65616146,111800.0,111790.0,0.04066166]
[1760256733882,1.31616146,111800.0,111790.0,0.04066166]
[1760256738474,1.32449118,111800.0,111790.0,0.04066166]
[1760256741449,0.17892288,111780.0,111770.0,0.0004]
[1760256741652,1.20228139,111780.0,111770.0,0.00045001]
[1760256741853,1.25994139,111780.0,111770.0,0.0016152]
[1760256744187,1.63009329,111780.0,111770.0,0.0026152]
[1760256744457,1.63018308,111780.0,111770.0,0.0036152]
[1760256745382,1.72725408,111780.0,111770.0,0.0036152]
[1760256746119,1.63853474,111780.0,111770.0,0.0036152]
[1760256746697,1.66546011,111780.0,111770.0,0.0036152]
[1760256746898,1.66546011,111780.0,111770.0,0.0026152]
[1760256747136,0.67324948,111780.0,111770.0,0.0026152]
[1760256747318,1.66546011,111780.0,111770.0,0.0026152]
[1760256747709,1.75417945,111780.0,111770.0,0.0036152]
[1760256748695,0.76198416,111780.0,111770.0,0.0036152]
[1760256748826,1.75419479,111780.0,111770.0,0.0036152]
[1760256753591,2.06150702,111780.0,111770.0,0.0036152]
[1760256753774,2.05315536,111780.0,111770.0,0.0036152]
[1760256753917,2.0615149,111780.0,111770.0,0.0036152]
[1760256755237,2.0615149,111780.0,111770.0,0.0798552]
[1760256755238,1.91161019,111780.0,111770.0,0.0798552]
[1760256755430,1.90325065,111780.0,111770.0,0.0433852]
[1760256755630,1.72432777,111780.0,111770.0,0.0433852]
[1760256755836,1.90325065,111780.0,111770.0,0.0433852]
[1760256758514,1.93969065,111780.0,111770.0,0.0206352]
[1760256758717,1.93969065,111780.0,111770.0,0.0036152]
[1760256759123,2.02840999,111780.0,111770.0,0.0036152]
[1760256762369,0.60372779,111780.0,111770.0,0.0278352]
[1760256762574,1.93938065,111780.0,111770.0,0.0036152]
[1760256763398,1.92266764,111780.0,111770.0,0.0036152]
[1760256763935,1.93939908,111780.0,111770.0,0.0036152]
[1760256764892,1.93939908,111780.0,111770.0,0.0026152]
[1760256765097,1.93939908,111780.0,111770.0,0.0016152]
[1760256766420,0.55019432,111780.0,111770.0,0.0623552]
[1760256766608,1.16868431,111780.0,111770.0,0.08786272]
[1760256766754,1.16868431,111780.0,111770.0,0.0798852]
[1760256767385,1.89223574,111780.0,111770.0,0.0016152]
[1760256767991,1.81844574,111780.0,111770.0,0.0798852]
[1760256768198,1.16868431,111780.0,111770.0,0.0798852]
[1760256770009,1.81844574,111780.0,111770.0,0.0798852]
[1760256770354,1.92238764,111780.0,111770.0,0.0016152]
[1760256772453,1.16868431,111780.0,111770.0,0.0798852]
[1760256773168,1.81844574,111780.0,111770.0,0.0798852]
[1760256773553,1.84209574,111780.0,111770.0,0.0798852]
[1760256773867,1.81844574,111780.0,111770.0,0.0798852]
[1760256774031,1.81844574,111780.0,111770.0,0.08966672]
[1760256774475,0.82868431,111780.0,111770.0,0.08966672]
[1760256774863,0.82868431,111780.0,111770.0,0.28649949]
[1760256775068,0.82868431,111780.0,111770.0,0.26860561]
[1760256776272,0.64976143,111780.0,111770.0,0.26860561]
[1760256776479,0.82868431,111780.0,111770.0,0.26860561]
[1760256776899,0.17892288,111780.0,111770.0,0.26860561]
[1760256777101,0.82868431,111780.0,111770.0,0.26860561]
[1760256780150,0.17892288,111780.0,111770.0,0.26860561]
[1760256780365,0.82868431,111780.0,111770.0,0.26860561]
[1760256780657,0.82868431,111780.0,111770.0,0.08966672]
[1760256780990,0.82868431,111780.0,111770.0,0.26860561]
[1760256781460,0.82868431,111780.0,111770.0,0.08966672]
[1760256783287,0.82868431,111780.0,111770.0,0.26860561]
[1760256785423,0.64976143,111780.0,111770.0,0.26860561]
[1760256785623,0.00095896,111800.0,111790.0,0.17890687]
[1760256785823,0.00095896,111800.0,111790.0,0.29295839]
[1760256785824,0.65072039,111800.0,111790.0,0.29295839]
[1760256786026,0.00095896,111800.0,111790.0,0.29295839]
[1760256787707,0.00095896,111800.0,111790.0,0.29395839]
[1760256788966,0.00095896,111800.0,111790.0,0.29495839]
[1760256795533,0.00095896,111800.0,111790.0,0.94397435]
[1760256796392,0.00095896,111800.0,111790.0,0.29495839]
[1760256796593,0.00095896,111800.0,111790.0,0.94397435]
[1760256797316,0.00095896,111800.0,111790.0,0.29495839]
[1760256797622,0.00095896,111800.0,111790.0,0.94397435]
[1760256802220,0.00095896,111800.0,111790.0,1.34397435]
[1760256807041,0.00095896,111800.0,111790.0,0.69495839]
[1760256807209,0.00095896,111800.0,111790.0,1.34397435]
[1760256812559,0.00095896,111800.0,111790.0,0.69495839]
[1760256812778,0.00095896,111800.0,111790.0,1.34397435]
[1760256813379,0.00095896,111800.0,111790.0,1.39912624]
[1760256814208,0.00095896,111800.0,111790.0,1.39812624]
[1760256814408,0.00095896,111800.0,111790.0,1.39712624]
[1760256814608,0.00095896,111800.0,111790.0,1.39812624]
[1760256814742,0.00095896,111800.0,111790.0,0.71895838]
[1760256814947,0.00095896,111800.0,111790.0,1.34397435]
[1760256815147,0.00095896,111800.0,111790.0,0.69495839]
[1760256815369,0.00095896,111800.0,111790.0,1.34397435]
[1760256819460,0.64901596,111820.0,111810.0,0.17887487]
[1760256819647,0.82787535,111820.0,111810.0,0.21464999]
[1760256819930,0.64141644,111820.0,111810.0,0.29121999]
[1760256821107,0.65035938,111820.0,111810.0,0.29121999]
[1760256822247,1.29937534,111820.0,111810.0,0.11234512]
[1760256822576,0.17887487,111810.0,111800.0,0.05407]
[1760256822752,0.82789083,111810.0,111800.0,0.07727]
[1760256824255,0.82789083,111810.0,111800.0,0.07827]
[1760256824685,0.82789083,111810.0,111800.0,0.07927]
[1760256825347,0.17887487,111810.0,111800.0,0.07927]
[1760256825564,0.82789083,111810.0,111800.0,0.11051469]
[1760256825803,0.17945722,111810.0,111800.0,0.11051469]
[1760256826029,0.64959831,111810.0,111800.0,0.30729464]
[1760256826253,0.00058235,111810.0,111800.0,0.28940556]
[1760256826956,0.64959831,111810.0,111800.0,0.28940556]
[1760256829314,0.00058235,111810.0,111800.0,0.28940556]
[1760256829529,0.64959831,111810.0,111800.0,0.28940556]
[1760256834134,0.00058235,111810.0,111800.0,0.28940556]
[1760256834569,0.64959831,111810.0,111800.0,0.28940556]
[1760256839767,0.00058235,111810.0,111800.0,0.28940556]
[1760256839978,0.64959831,111810.0,111800.0,0.28940556]
[1760256840422,0.00058235,111810.0,111800.0,0.28940556]
[1760256841940,0.64959831,111810.0,111800.0,0.28940556]
[1760256842139,0.82847318,111810.0,111800.0,0.28940556]
[1760256842978,0.64959831,111810.0,111800.0,0.28940556]
[1760256843182,0.82847318,111810.0,111800.0,0.28940556]
[1760256843595,0.82847318,111810.0,111800.0,0.11051469]
[1760256843818,0.85116318,111810.0,111800.0,0.07927]
[1760256844888,0.87807218,111810.0,111800.0,0.07927]
[1760256847012,0.85538218,111810.0,111800.0,0.07927]
[1760256850224,0.89291218,111810.0,111800.0,0.04236]
[1760256850423,0.92732218,111810.0,111800.0,0.04236]
[1760256850604,0.89291218,111810.0,111800.0,0.04236]
[1760256851356,0.89291218,111810.0,111800.0,0.10707165]
[1760256853018,0.20636622,111810.0,111800.0,0.10707165]
[1760256853211,0.87904218,111810.0,111800.0,0.10707165]
[1760256853569,0.89301429,111810.0,111800.0,0.10707165]
[1760256854297,0.86935429,111810.0,111800.0,0.10707165]
[1760256854578,0.85548429,111810.0,111800.0,0.10707165]
[1760256858198,0.66258252,111810.0,111800.0,0.10707165]
[1760256858955,0.84145739,111810.0,111800.0,0.10707165]
[1760256859263,0.87898739,111810.0,111800.0,0.07329165]
[1760256859691,1.56251546,111810.0,111800.0,0.002]
[1760256859906,1.90251546,111810.0,111800.0,0.002]
[1760256861091,1.90251546,111810.0,111800.0,0.001]
[1760256861569,0.51889087,111800.0,111790.0,0.000959]
[1760256861890,1.18201894,111800.0,111790.0,0.00100901]
[1760256862115,1.24008894,111800.0,111790.0,0.00100901]
[1760256862353,1.26700347,111800.0,111790.0,0.00100901]
[1760256862852,1.26700347,111800.0,111790.0,0.00200901]
[1760256863073,1.26700347,111800.0,111790.0,0.00300901]
[1760256872619,0.5834754,111800.0,111790.0,0.02713901]
[1760256872830,1.19492347,111800.0,111790.0,0.08474514]
[1760256879020,1.26664347,111800.0,111790.0,0.05059514]
[1760256879224,1.26664347,111800.0,111790.0,0.02646514]
[1760256879449,1.26664347,111800.0,111790.0,0.00926514]
[1760256881165,1.26664347,111800.0,111790.0,0.03367514]
[1760256881377,1.26664347,111800.0,111790.0,0.00300901]
[1760256882817,1.23082347,111800.0,111790.0,0.02741901]
[1760256883022,1.23082347,111800.0,111790.0,0.04412901]
[1760256884412,1.26620347,111800.0,111790.0,0.04195901]
[1760256885480,1.26620347,111800.0,111790.0,0.01971901]
[1760256885655,1.26590445,111800.0,111790.0,0.02683391]
[1760256888645,1.26590445,111800.0,111790.0,0.01012391]
[1760256889984,1.26590445,111800.0,111790.0,0.00300901]
[1760256890728,1.07103619,111800.0,111790.0,0.00300901]
[1760256891089,1.24992706,111800.0,111790.0,0.00300901]
[1760256892076,0.54327899,111800.0,111790.0,0.07832901]
[1760256892285,1.17864706,111800.0,111790.0,0.07832901]
[1760256892445,1.17864706,111800.0,111790.0,0.10578102]
[1760256892985,1.21593706,111800.0,111790.0,0.10578102]
[1760256893193,1.21593706,111800.0,111790.0,0.06997102]
[1760256896705,1.25131706,111800.0,111790.0,0.06997102]
[1760256897079,1.25131706,111800.0,111790.0,0.04251901]
[1760256898027,1.25131706,111800.0,111790.0,0.02027901]
[1760256898280,0.56681899,111800.0,111790.0,0.07832901]
[1760256898470,1.21593706,111800.0,111790.0,0.04251901]
[1760256898856,1.17864706,111800.0,111790.0,0.07832901]
[1760256899072,1.17864706,111800.0,111790.0,0.10578102]
[1760256899599,1.20258706,111800.0,111790.0,0.10578102]
[1760256899855,1.21593706,111800.0,111790.0,0.10578102]
[1760256900018,1.21593706,111800.0,111790.0,0.06997102]
[1760256900228,0.56681899,111800.0,111790.0,0.10578102]
[1760256900430,1.21593706,111800.0,111790.0,0.10578102]
[1760256900762,1.21593706,111800.0,111790.0,0.06997102]
[1760256901955,1.21593706,111800.0,111790.0,0.30257857]
[1760256901956,0.52952899,111800.0,111790.0,0.30257857]
[1760256902162,1.17864706,111800.0,111790.0,0.28468789]
[1760256902338,1.17864706,111800.0,111790.0,0.10578102]
[1760256903113,1.17864706,111800.0,111790.0,0.28468789]
[1760256903316,1.15173253,111800.0,111790.0,0.28468789]
[1760256903918,0.50261446,111800.0,111790.0,0.28468789]
[1760256904342,1.15173253,111800.0,111790.0,0.28468789]
[1760256906873,1.18757253,111800.0,111790.0,0.04251901]
[1760256907308,0.53845446,111800.0,111790.0,0.25435588]
[1760256907486,0.17889087,111800.0,111790.0,0.25435588]
[1760256907696,0.82800894,111800.0,111790.0,0.25435588]
[1760256909098,0.82800894,111800.0,111790.0,0.07544901]
[1760256909300,0.82800894,111800.0,111790.0,0.28151989]
[1760256911726,0.17889087,111800.0,111790.0,0.28151989]
[1760256911980,0.82800894,111800.0,111790.0,0.28151989]
[1760256914505,0.64911807,111800.0,111790.0,0.28151989]
[1760256915091,0.82800894,111800.0,111790.0,0.28151989]
[1760256915287,0.22925529,111820.0,111800.0,0.17889087]
[1760256915498,0.85132947,111820.0,111810.0,0.07346]
[1760256915698,1.50031545,111820.0,111810.0,0.07346]
[1760256916534,1.84031545,111820.0,111810.0,0.07346]
[1760256917445,0.85474109,111830.0,111820.0,0.17885888]
[1760256917654,0.64898598,111830.0,111820.0,0.25231888]
[1760256917860,0.34,111830.0,111820.0,0.28336857]
[1760256918066,0.98898598,111830.0,111820.0,0.28336857]
[1760256918191,0.34,111830.0,111820.0,0.28336857]
[1760256918395,0.98898598,111830.0,111820.0,0.28336857]
[1760256918999,1.16782886,111830.0,111820.0,0.28336857]
[1760256919196,0.98898598,111830.0,111820.0,0.28336857]
[1760256919449,1.16782886,111830.0,111820.0,0.28336857]
[1760256920414,1.16782886,111830.0,111810.0,0.01693]
[1760256920415,0.17885888,111820.0,111810.0,0.01693]
[1760256920619,1.49137084,111820.0,111810.0,0.01693]
[1760256920814,1.51370084,111820.0,111810.0,0.21940487]
[1760256921020,0.64898598,111820.0,111810.0,0.25233487]
[1760256921246,0.64956825,111820.0,111810.0,0.29316608]
[1760256921569,0.00058227,111820.0,111810.0,0.29316608]
[1760256921771,0.64956825,111820.0,111810.0,0.29316608]
[1760256923691,0.82842713,111820.0,111810.0,0.29316608]
[1760256925411,0.00058227,111820.0,111810.0,0.29316608]
[1760256929983,0.82842713,111820.0,111810.0,0.29316608]
[1760256930188,0.17944115,111820.0,111810.0,0.29316608]
[1760256930501,0.82842713,111820.0,111810.0,0.29316608]
[1760256936726,0.64956825,111820.0,111810.0,0.29316608]
[1760256937064,0.82842713,111820.0,111810.0,0.29316608]
[1760256946092,1.54918311,111820.0,111810.0,0.04083121]
[1760256946252,0.17887487,111810.0,111800.0,0.24282084]
[1760256946451,0.85048085,111810.0,111800.0,0.29941084]
[1760256946689,0.82786085,111810.0,111800.0,0.29941084]
[1760256947468,0.82786085,111810.0,111800.0,0.30041084]
[1760256947668,0.82786085,111810.0,111800.0,0.00295889]
[1760256947669,1.23952085,111810.0,111800.0,0.00295889]
[1760256955114,1.88850683,111810.0,111800.0,0.00295889]
[1760256955312,1.23952085,111810.0,111800.0,0.00295889]
[1760256957727,1.88850683,111810.0,111800.0,0.00295889]
[1760256959493,0.59053487,111810.0,111800.0,0.00295889]
[1760256959687,1.23952085,111810.0,111800.0,0.00295889]
[1760256960582,1.20435085,111810.0,111800.0,0.07622889]
[1760256960784,1.20435085,111810.0,111800.0,0.10347431]
[1760256960977,1.20435085,111810.0,111800.0,0.06955431]
[1760256961237,0.55536487,111810.0,111800.0,0.10347431]
[1760256961416,1.20435085,111810.0,111800.0,0.10347431]
[1760256961604,1.20435085,111810.0,111800.0,0.06955431]
[1760256962450,0.55536487,111810.0,111800.0,0.06955431]
[1760256962710,1.20435085,111810.0,111800.0,0.06955431]
[1760256963524,1.23952085,111810.0,111800.0,0.03020431]
[1760256963743,1.23952085,111810.0,111800.0,0.00295889]
[1760256963978,1.20864101,111810.0,111800.0,0.07622889]
[1760256964110,1.19477101,111810.0,111800.0,0.07622889]
[1760256964532,1.21739101,111810.0,111800.0,0.07622889]
[1760256965300,1.23037101,111810.0,111800.0,0.07622889]
[1760256965687,0.00058227,111820.0,111810.0,0.17887487]
[1760256965888,0.82842713,111820.0,111810.0,0.25214487]
[1760256966140,0.17887487,111810.0,111800.0,0.22577528]
[1760256966288,0.82786085,111810.0,111800.0,0.22577528]
[1760256966492,0.82786085,111810.0,111800.0,0.28236528]
[1760256966692,0.82786085,111810.0,111800.0,0.28036528]
[1760256968101,0.82786085,111810.0,111800.0,0.28136528]
[1760256969131,0.82786085,111810.0,111800.0,0.28236528]
[1760256970137,0.64898598,111810.0,111800.0,0.28236528]
[1760256970324,0.82786085,111810.0,111800.0,0.28236528]
[1760256971234,0.86365085,111810.0,111800.0,0.24844528]
[1760256971679,0.84184085,111810.0,111800.0,0.28400528]
[1760256972949,0.20724603,111820.0,111800.0,0.28400528]
[1760256973237,0.64898598,111810.0,111800.0,0.28400528]
[1760256973879,0.64898598,111810.0,111800.0,0.28300528]
[1760256974028,0.64898598,111810.0,111800.0,0.28200528]
[1760256975454,0.20724603,111820.0,111800.0,0.28200528]
[1760256975684,0.85622713,111820.0,111800.0,0.28200528]
[1760256975885,0.85622713,111820.0,111810.0,0.17887487]
[1760256976009,0.84324713,111820.0,111810.0,0.30020289]
[1760256976209,0.86505713,111820.0,111810.0,0.30020289]
[1760256976515,0.87803713,111820.0,111810.0,0.26464289]
[1760256976712,0.87803713,111820.0,111810.0,0.12132802]
[1760256977382,0.87803713,111820.0,111810.0,0.30020289]
[1760256977813,0.85622713,111820.0,111810.0,0.30020289]
[1760256978066,0.87803713,111820.0,111810.0,0.26464289]
[1760256978217,0.87803713,111820.0,111810.0,0.08576802]
[1760256979614,0.87803713,111820.0,111810.0,0.12132802]
[1760256980682,0.87803713,111820.0,111810.0,0.30020289]
[1760256982876,0.02690832,111820.0,111810.0,0.30020289]
[1760256983252,1.1678281,111830.0,111820.0,0.17885888]
[1760256983460,1.1678281,111830.0,111820.0,0.29480164]
[1760256983662,1.19473394,111830.0,111820.0,0.29480164]
[1760256983824,0.54575284,111830.0,111820.0,0.29480164]
[1760256984025,1.19473394,111830.0,111820.0,0.29480164]
[1760256985889,1.19473394,111830.0,111820.0,0.11594276]
[1760256986042,1.19473394,111830.0,111820.0,0.29480164]
[1760256986636,0.54575284,111830.0,111820.0,0.29480164]
[1760256988881,0.54633504,111830.0,111820.0,0.29480164]
[1760256989157,0.54633504,111830.0,111820.0,0.11594276]
[1760256989562,0.54633504,111830.0,111820.0,0.29480164]
[1760256989763,0.54633504,111830.0,111820.0,0.11594276]
[1760256989900,1.21712614,111830.0,111820.0,0.08038276]
[1760256990238,1.21712614,111830.0,111820.0,0.11594276]
[1760256990741,0.56814504,111830.0,111820.0,0.11594276]
[1760256991042,1.19531614,111830.0,111820.0,0.11594276]
[1760256991345,1.21712614,111830.0,111820.0,0.11594276]
[1760256991483,0.54633504,111830.0,111820.0,0.29480164]
[1760256991913,1.19531614,111830.0,111820.0,0.29480164]
[1760256992327,0.54633092,111830.0,111820.0,0.29480164]
[1760256994456,0.36748804,111830.0,111820.0,0.29480164]
[1760256994649,0.3405822,111830.0,111820.0,0.29480164]
[1760256996038,0.0005822,111830.0,111820.0,0.29480164]
[1760256999219,0.17942508,111830.0,111820.0,0.29480164]
[1760257004476,0.17942508,111830.0,111820.0,0.29476164]
[1760257009649,0.17942508,111830.0,111820.0,0.11590276]
[1760257009859,0.17885888,111820.0,111810.0,0.06445681]
[1760257010072,0.89655998,111820.0,111810.0,0.06445681]
[1760257010492,0.89655998,111820.0,111810.0,0.08854681]
[1760257010706,0.86301998,111820.0,111810.0,0.08854681]
[1760257011144,0.17885888,111820.0,111810.0,0.12157681]
[1760257013843,0.82783998,111820.0,111810.0,0.12157681]
[1760257015580,0.17885888,111820.0,111810.0,0.12157681]
[1760257015784,0.82783998,111820.0,111810.0,0.12157681]
[1760257018076,0.82783998,111820.0,111810.0,0.30045168]
[1760257018385,0.82783998,111820.0,111810.0,0.12157681]
[1760257021125,0.17885888,111820.0,111810.0,0.30045168]
[1760257023201,0.17885888,111820.0,111810.0,0.12157681]
[1760257024301,0.17885888,111820.0,111810.0,0.30045168]
[1760257025204,0.17885888,111820.0,111810.0,0.12157681]
[1760257025347,0.17885888,111820.0,111810.0,0.30045168]
[1760257028183,0.85531315,111830.0,111820.0,0.17885888]
[1760257028393,0.85531315,111830.0,111820.0,0.08714106]
[1760257028540,0.85531315,111830.0,111820.0,0.12226106]
[1760257030357,0.02748917,111830.0,111820.0,0.30111994]
[1760257030561,0.17942508,111830.0,111820.0,0.30111994]
[1760257031369,0.84578137,111840.0,111820.0,0.30111994]
[1760257031570,0.17884288,111830.0,111820.0,0.26599994]
[1760257032214,0.17884288,111830.0,111820.0,0.30111994]
[1760257038284,0.82754369,111830.0,111820.0,0.30111994]
[1760257038487,0.17884288,111830.0,111820.0,0.30111994]
[1760257038700,0.82754369,111830.0,111820.0,0.30111994]
[1760257039095,0.17884288,111830.0,111820.0,0.30111994]
[1760257039284,0.82754369,111830.0,111820.0,0.30111994]
[1760257040115,0.17884288,111830.0,111820.0,0.30111994]
[1760257043432,0.82754369,111830.0,111820.0,0.30111994]
[1760257045602,0.17884288,111830.0,111820.0,0.30111994]
[1760257046049,0.17884288,111830.0,111820.0,0.12226106]
[1760257046284,0.17884288,111830.0,111820.0,0.31900582]
[1760257046486,0.17884288,111830.0,111820.0,0.30111994]
[1760257047373,0.82754369,111830.0,111820.0,0.30111994]
[1760257051146,0.17884288,111830.0,111820.0,0.30111994]
[1760257053054,0.17884288,111830.0,111820.0,0.12226106]
[1760257053288,0.85088369,111830.0,111820.0,0.07433]
[1760257053530,0.17885888,111820.0,111810.0,0.27844984]
[1760257053754,0.87601369,111830.0,111810.0,0.30049984]
[1760257054140,0.17885888,111820.0,111810.0,0.30049984]
[1760257054439,0.87601369,111830.0,111810.0,0.30049984]
[1760257054650,0.84203369,111830.0,111810.0,0.30049984]
[1760257056307,0.84203369,111830.0,111820.0,0.17885888]
[1760257056511,0.86537369,111830.0,111820.0,0.20090888]
[1760257057784,0.21667288,111830.0,111820.0,0.06998587]
[1760257057960,0.17885888,111820.0,111810.0,0.09957681]
[1760257058212,0.82755969,111820.0,111810.0,0.30224137]
[1760257059521,0.85063969,111820.0,111810.0,0.30224137]
[1760257059949,0.82755969,111820.0,111810.0,0.30224137]
[1760257065154,0.64870081,111820.0,111810.0,0.30224137]
[1760257065771,0.19333288,111830.0,111810.0,0.30224137]
[1760257066062,0.64870081,111820.0,111810.0,0.30224137]
[1760257067370,0.19333288,111830.0,111810.0,0.30224137]
[1760257067592,0.84203369,111830.0,111810.0,0.30224137]
[1760257067740,0.84203369,111830.0,111820.0,0.01755]
[1760257067942,0.86399369,111830.0,111820.0,0.07279914]
[1760257073163,0.89704369,111830.0,111820.0,0.07279914]
[1760257073441,0.86399369,111830.0,111820.0,0.07279914]
[1760257074247,0.21529288,111830.0,111820.0,0.07279914]
[1760257074452,0.86399369,111830.0,111820.0,0.07279914]
[1760257076661,0.63598197,111830.0,111820.0,0.07279914]
[1760257076805,0.81482485,111830.0,111820.0,0.10582914]
[1760257078439,0.83678485,111830.0,111820.0,0.10582914]
[1760257079023,0.83678485,111830.0,111820.0,0.07279914]
[1760257079519,0.83678485,111830.0,111820.0,0.10582914]
[1760257079997,0.20080288,111830.0,111820.0,0.10582914]
[1760257080218,0.84950369,111830.0,111820.0,0.10582914]
[1760257082798,0.84950369,111830.0,111820.0,0.07279914]
[1760257084032,0.17885888,111820.0,111810.0,0.00095879]
[1760257084278,1.8162605,111820.0,111810.0,0.00095879]
[1760257084509,1.8570405,111820.0,111810.0,0.00095879]
[1760257084969,1.88395022,111820.0,111810.0,0.00095879]
[1760257086315,0.5677286,111820.0,111810.0,0.02422879]
[1760257086484,0.85446941,111820.0,111810.0,0.2790533]
[1760257086688,0.2057686,111820.0,111810.0,0.2790533]
[1760257086848,0.85446941,111820.0,111810.0,0.2790533]
[1760257093629,0.82755969,111820.0,111810.0,0.2790533]
[1760257094587,0.02690704,111830.0,111820.0,0.17885888]
[1760257094793,0.85445073,111830.0,111820.0,0.2997201]
[1760257096561,0.20574992,111830.0,111820.0,0.2997201]
[1760257096837,0.85445073,111830.0,111820.0,0.2997201]
[1760257097172,0.02690704,111830.0,111820.0,0.2997201]
[1760257097400,0.20179764,111850.0,111830.0,0.17882877]
[1760257097614,0.02690301,111840.0,111830.0,0.23864421]
[1760257097831,0.17882689,111840.0,111830.0,0.23864421]
[1760257098017,0.85041062,111850.0,111830.0,0.26237421]
[1760257098258,0.17882689,111840.0,111830.0,0.29673421]
[1760257098681,0.87731214,111850.0,111830.0,0.29673421]
[1760257098865,0.87744625,111850.0,111830.0,0.29673421]
[1760257099108,1.21744625,111850.0,111840.0,0.01698]
[1760257099314,1.23968625,111850.0,111840.0,0.04071]
[1760257103620,0.02703563,111850.0,111840.0,0.27926653]
[1760257103890,0.00013411,111850.0,111840.0,0.27926653]
[1760257104054,0.00129824,111850.0,111840.0,0.27926653]
[1760257107206,0.00129824,111850.0,111840.0,0.30616518]
[1760257119539,0.00129824,111850.0,111840.0,0.95477816]
[1760257119949,0.00129824,111850.0,111840.0,1.69477816]
[1760257120269,0.00129824,111850.0,111840.0,2.44339113]
[1760257120680,0.00129824,111850.0,111840.0,2.44539113]
[1760257121137,0.00129824,111850.0,111840.0,2.34539114]
[1760257121345,0.00129824,111850.0,111840.0,2.44539113]
[1760257121641,1e-08,111850.0,111840.0,2.47554303]
[1760257121859,1e-08,111850.0,111840.0,2.50054302]
[1760257122010,1e-08,111850.0,111840.0,2.50254302]
[1760257122215,1e-08,111850.0,111840.0,2.51146362]
[1760257122643,1e-08,111850.0,111840.0,2.50946362]
[1760257122816,1e-08,111850.0,111840.0,2.50054302]
[1760257123441,1e-08,111850.0,111840.0,2.50254302]
[1760257128515,1e-08,111850.0,111840.0,1.20531706]
[1760257128722,1e-08,111850.0,111840.0,2.50254302]
[1760257131422,1e-08,111850.0,111840.0,1.69877816]
[1760257132817,1e-08,111850.0,111840.0,1.79877815]
[1760257133135,1e-08,111850.0,111840.0,1.69877816]
[1760257138489,0.64861298,111880.0,111870.0,0.17877893]
[1760257138655,0.8278773,111880.0,111870.0,0.25234486]
[1760257138860,0.8278773,111880.0,111870.0,0.28423486]
[1760257139163,0.82962285,111880.0,111870.0,0.28423486]
[1760257139930,0.83856099,111880.0,111870.0,0.28423486]
[1760257140133,0.83856099,111880.0,111870.0,0.28623486]
[1760257141650,0.18994801,111880.0,111870.0,0.28623486]
[1760257141870,0.18994801,111880.0,111870.0,0.10745593]
[1760257142084,0.18994801,111880.0,111870.0,0.28623486]
[1760257142280,0.83856099,111880.0,111870.0,0.28623486]
[1760257145323,0.00224565,111880.0,111870.0,0.28623486]
[1760257145539,0.18100861,111880.0,111870.0,0.28623486]
[1760257146199,0.00224565,111880.0,111870.0,0.28623486]
[1760257146417,0.18100861,111880.0,111870.0,0.28623486]
[1760257147995,0.81086084,111890.0,111870.0,0.28623486]
[1760257148201,0.81086084,111890.0,111880.0,0.03486]